bitfinex/quotes_ETHUSD_20230830
["timestamp","ask_amount","ask_price","bid_price","bid_amount"]
[1693403287430,11.65535,1716.0,1715.6,11.65752]
[1693403287629,6.4349838,1716.1,1715.6,11.65752]
[1693403287782,37.32567045,1716.2,1715.6,20.35986065]
[1693403287984,42.2416538,1716.2,1715.6,20.35986065]
[1693403288399,36.4146238,1716.2,1715.6,20.35986065]
[1693403288732,36.4146238,1716.2,1715.8,11.65602]
[1693403288884,12.2615938,1716.2,1715.8,11.65602]
[1693403289285,18.0885638,1716.2,1715.8,5.82801]
[1693403289496,20.98461045,1716.2,1715.7,5.82844]
[1693403289734,5.82757,1716.0,1715.7,5.82844]
[1693403289887,5.82757,1716.0,1715.7,6.994153]
[1693403290227,5.82735,1716.1,1715.7,18.651193]
[1693403291433,11.65463,1716.1,1715.7,12.822673]
[1693403291618,13.63956,1716.1,1715.6,5.82868]
[1693403291820,11.65456,1716.1,1715.7,5.82843]
[1693403291992,5.82728,1716.1,1715.7,17.48547]
[1693403292191,6.4345338,1716.2,1715.7,17.48547]
[1693403292388,12.2615038,1716.2,1715.8,1.748547]
[1693403292588,0.6076638,1716.3,1715.9,17.48338]
[1693403292794,0.6076638,1716.4,1715.9,17.48338]
[1693403292993,0.68361612,1716.4,1715.9,17.48338]
[1693403293306,36.4134938,1716.5,1716.1,17.48103]
[1693403293499,36.4134938,1716.5,1716.3,5.82648]
[1693403293717,6.4334938,1716.5,1716.2,13.401523]
[1693403294698,5.82583,1716.5,1716.2,13.401523]
[1693403294903,6.4334938,1716.5,1716.2,13.401523]
[1693403295133,12.2593238,1716.5,1716.2,5.82671]
[1693403295549,18.0851538,1716.5,1716.1,5.82699]
[1693403296340,5.82583,1716.5,1716.1,17.48131]
[1693403296730,12.2589738,1716.6,1716.1,17.48131]
[1693403297442,11.65131,1716.6,1716.1,17.48131]
[1693403297618,12.2589738,1716.6,1716.2,1.748131]
[1693403297818,11.65131,1716.6,1716.3,5.82641]
[1693403299845,5.82561,1716.6,1716.3,5.82641]
[1693403300046,4.44214665,1716.8,1716.3,20.35285065]
[1693403300047,0.6076638,1716.8,1716.3,20.35285065]
[1693403300208,5.82479,1716.8,1716.4,1.95644066]
[1693403300549,5.82352,1717.2,1716.5,26.94275065]
[1693403300550,36.4112238,1717.2,1716.5,26.94275065]
[1693403300851,41.62718,1717.2,1716.5,26.94275065]
[1693403301447,35.80356,1717.2,1716.5,26.94275065]
[1693403301746,35.80356,1717.2,1716.7,17.47456]
[1693403301921,35.80356,1717.2,1716.7,20.34804065]
[1693403302955,5.82356,1717.2,1716.7,20.34804065]
[1693403303823,5.82328,1717.3,1716.7,20.34804065]
[1693403304152,5.82345,1717.2,1716.7,20.34804065]
[1693403304447,5.82345,1717.2,1716.9,5.82438]
[1693403304653,38.23283079,1717.5,1716.9,17.47328]
[1693403304654,11.64572,1717.4,1716.9,17.47328]
[1693403304836,5.82278,1717.4,1716.9,17.47328]
[1693403305211,5.82278,1717.4,1716.9,20.34676065]
[1693403305407,29.98,1717.5,1717.1,17.4711]
[1693403306051,35.80244,1717.5,1717.1,17.4711]
[1693403306247,35.80244,1717.5,1717.1,19.219231]
[1693403306450,41.62488,1717.5,1717.1,19.219231]
[1693403306625,41.62488,1717.5,1717.1,11.6474]
[1693403306826,47.44732,1717.5,1717.1,5.8237]
[1693403307425,35.80244,1717.5,1717.1,11.64747]
[1693403308149,35.80244,1717.5,1717.1,5.8237]
[1693403308150,41.62488,1717.5,1717.1,5.8237]
[1693403308325,3.83694881,1717.4,1717.1,5.8237]
[1693403308531,11.64584,1717.4,1717.1,11.64747]
[1693403309823,11.64584,1717.4,1717.1,5.8237]
[1693403310025,17.46876,1717.4,1717.0,5.82393]
[1693403310221,19.45376,1717.4,1717.0,5.82393]
[1693403310461,1.91783138,1717.3,1717.0,5.82393]
[1693403310659,5.82343,1717.2,1717.0,5.82393]
[1693403311068,19.45529,1717.2,1716.7,3.0]
[1693403311254,19.45529,1717.2,1716.6,9.1325914]
[1693403311769,19.45529,1717.2,1716.6,7.84903]
[1693403311919,19.45529,1717.2,1716.5,11.65129]
[1693403312122,11.64868,1717.0,1716.6,5.82537]
[1693403312372,17.47306,1717.0,1716.5,11.65129]
[1693403312571,17.47306,1717.0,1716.5,17.23647265]
[1693403312725,5.82384,1717.1,1716.6,2.87348065]
[1693403312928,11.64718,1717.2,1716.7,17.47485]
[1693403313164,5.82353,1717.2,1716.7,17.47485]
[1693403313491,5.82378,1717.1,1716.7,17.47485]
[1693403313765,5.82378,1717.1,1716.9,5.82445]
[1693403314136,5.82353,1717.2,1716.9,2.87348065]
[1693403314341,5.82378,1717.1,1716.9,8.69784065]
[1693403314544,5.82315,1717.3,1716.9,20.34674065]
[1693403314760,13.27848,1717.4,1716.9,20.34674065]
[1693403315072,13.27848,1717.4,1716.9,22.62423371]
[1693403315474,7.45551,1717.4,1716.9,22.62423371]
[1693403315680,13.27843,1717.4,1716.9,22.62423371]
[1693403317268,21.08635,1717.4,1716.9,8.10185306]
[1693403317474,21.08635,1717.4,1716.9,13.92630306]
[1693403317674,26.775233,1717.4,1716.9,13.92630306]
[1693403317895,26.775233,1717.4,1716.9,5.82436]
[1693403318195,21.08635,1717.4,1716.9,5.82436]
[1693403319288,21.08635,1717.4,1716.8,11.64923]
[1693403319498,21.08635,1717.4,1716.8,5.82457]
[1693403319705,21.08635,1717.4,1716.8,11.64936]
[1693403320397,21.08635,1717.4,1716.8,20.34763065]
[1693403320560,21.08635,1717.4,1716.9,2.03476307]
[1693403320765,21.08635,1717.4,1717.0,5.82394]
[1693403320995,11.64583,1717.4,1717.0,11.64805]
[1693403321380,11.64583,1717.4,1717.0,17.47216]
[1693403321893,11.64519,1717.5,1717.0,17.47216]
[1693403322073,11.64519,1717.5,1717.1,13.394396]
[1693403322254,5.82252,1717.5,1717.1,19.218166]
[1693403323200,11.64516,1717.5,1717.1,11.64718]
[1693403323704,17.4678,1717.5,1717.1,5.82346]
[1693403324498,2.87348065,1717.4,1716.8,5.82455]
[1693403324714,1.985,1717.2,1716.7,11.64998]
[1693403324932,11.64787,1717.1,1716.7,5.82498]
[1693403325104,17.47181,1717.1,1716.7,5.82506]
[1693403325306,19.417491,1717.1,1716.7,5.82506]
[1693403326046,11.64787,1717.1,1716.7,11.65018]
[1693403326349,11.64787,1717.1,1716.7,17.4753]
[1693403327324,11.64787,1717.1,1716.7,11.65018]
[1693403329354,11.64786,1717.1,1716.7,5.82506]
[1693403330214,11.64786,1717.1,1716.7,11.65018]
[1693403330418,13.593498,1717.1,1716.7,11.65018]
[1693403333253,19.417428,1717.1,1716.7,5.82506]
[1693403333466,1.985,1716.8,1716.3,5.82632]
[1693403333638,11.65058,1716.7,1716.3,5.82632]
[1693403333843,11.65058,1716.7,1716.3,13.009152]
[1693403334183,11.65058,1716.7,1716.3,7.182672]
[1693403334484,17.47587,1716.7,1716.3,7.182672]
[1693403334780,11.65058,1716.7,1716.3,13.009152]
[1693403334946,11.65058,1716.7,1716.4,8.82614]
[1693403335998,19.33395383,1716.7,1716.3,5.82636]
[1693403336146,21.31895383,1716.7,1716.3,5.82636]
[1693403336347,21.31895383,1716.7,1716.2,7.73722]
[1693403336747,21.31895383,1716.7,1716.2,1.9106]
[1693403336988,21.31895383,1716.7,1716.2,10.73741]
[1693403337492,2.13189538,1716.6,1716.0,0.17103483]
[1693403337679,17.47821,1716.5,1716.0,0.17103483]
[1693403338042,2.87348065,1716.4,1716.0,0.17103483]
[1693403338373,19.46465,1716.3,1715.7,5.82842]
[1693403338584,19.46465,1716.3,1715.7,17.48546]
[1693403338585,22.33813065,1716.3,1715.7,17.48546]
[1693403338887,25.15457072,1716.3,1715.7,19.816888]
[1693403339061,25.15457072,1716.3,1715.7,17.48546]
[1693403339245,25.15457072,1716.3,1715.7,11.65694]
[1693403340187,23.16957072,1716.3,1715.7,11.65694]
[1693403340392,11.6531,1716.3,1715.7,17.48546]
[1693403340681,5.82625,1716.4,1715.8,2.87348065]
[1693403340883,9.41945,1716.5,1716.0,17.48241]
[1693403340884,11.65197,1716.5,1716.0,17.48241]
[1693403343661,5.82595,1716.5,1716.0,17.48241]
[1693403343786,41.63121,1716.6,1716.1,1.748241]
[1693403343985,5.82554,1716.6,1716.2,11.6533]
[1693403344283,5.82554,1716.6,1716.2,17.48012]
[1693403344481,5.82551,1716.6,1716.2,17.48012]
[1693403345229,11.65053,1716.7,1716.2,17.48012]
[1693403345438,11.65053,1716.7,1716.4,5.82607]
[1693403345780,7.80993,1716.8,1716.4,5.82607]
[1693403345781,5.82493,1716.8,1716.4,17.47835]
[1693403346027,35.80453,1716.9,1716.4,17.47835]
[1693403346028,29.98,1716.9,1716.4,17.47835]
[1693403346241,35.8045,1716.9,1716.4,20.35183065]
[1693403346534,35.8045,1716.9,1716.6,11.6508]
[1693403346847,5.8245,1716.9,1716.6,11.6508]
[1693403346994,5.8245,1716.9,1716.7,0.388]
[1693403347579,5.8245,1716.9,1716.7,6.21309]
[1693403353273,11.649,1716.9,1716.7,6.21309]
[1693403353429,18.56155014,1716.9,1716.7,0.388]
[1693403354934,23.42003079,1716.9,1716.7,0.388]
[1693403355553,24.02344406,1716.9,1716.7,0.388]
[1693403356482,1.985,1716.8,1716.7,0.388]
[1693403356706,22.93626392,1716.8,1716.7,0.388]
[1693403356988,26.08759953,1716.8,1716.7,0.388]
[1693403357542,29.38930617,1716.8,1716.7,0.388]
[1693403358179,29.99627772,1716.8,1716.7,0.388]
[1693403358396,17.47437,1716.8,1716.7,0.388]
[1693403360144,11.64958,1716.8,1716.7,0.388]
[1693403360356,5.82479,1716.8,1716.7,0.388]
[1693403364291,17.47437,1716.8,1716.7,0.388]
[1693403365714,18.08134155,1716.8,1716.7,0.388]
[1693403365915,20.15397115,1716.8,1716.7,0.388]
[1693403366904,20.7609427,1716.8,1716.7,0.388]
[1693403368921,20.83688192,1716.8,1716.7,0.388]
[1693403369133,25.69536257,1716.8,1716.7,0.388]
[1693403369336,25.99351093,1716.8,1716.7,0.388]
[1693403370733,26.67043652,1716.8,1716.7,0.388]
[1693403371024,29.67043652,1716.8,1716.7,0.388]
[1693403371227,30.55449433,1716.8,1716.7,0.388]
[1693403371584,3.05544943,1716.7,1715.8,7.42008]
[1693403371827,1.985,1716.3,1715.8,5.82784]
[1693403372131,17.48097,1716.2,1715.8,5.82784]
[1693403372421,17.48097,1716.2,1715.7,7.86204]
[1693403372636,17.48097,1716.2,1715.6,7.42089]
[1693403372637,1.985,1716.1,1715.6,1.5921]
[1693403372783,17.48361,1715.9,1715.4,14.29824781]
[1693403372982,19.231971,1715.9,1715.5,6.84199345]
[1693403373186,19.231971,1715.9,1715.5,5.82918]
[1693403373420,19.231971,1715.9,1715.4,14.29819781]
[1693403373629,19.231971,1715.9,1715.5,1.01282754]
[1693403373933,19.231971,1715.9,1715.4,13.69238]
[1693403374090,19.231971,1715.9,1715.5,1.01283168]
[1693403374284,19.231971,1715.9,1715.5,5.82918]
[1693403374936,7.7515471,1715.8,1715.5,5.82918]
[1693403375140,13.5798971,1715.8,1715.5,5.82918]
[1693403376240,19.4082471,1715.8,1715.4,2.0337]
[1693403376393,21.3932471,1715.8,1715.3,7.46504]
[1693403376588,21.3932471,1715.8,1715.3,5.82974]
[1693403376783,5.82893,1715.6,1715.3,11.65962]
[1693403377012,5.82893,1715.6,1715.3,5.82974]
[1693403377426,5.82889,1715.6,1715.3,11.65962]
[1693403377658,13.79688471,1715.7,1715.3,11.65962]
[1693403377936,5.82876,1715.7,1715.3,17.4895]
[1693403378328,11.65749,1715.7,1715.3,17.4895]
[1693403379340,11.65749,1715.7,1715.3,5.82974]
[1693403379341,17.48622,1715.7,1715.3,5.82974]
[1693403380044,17.48622,1715.7,1715.2,7.98841]
[1693403380540,11.65746,1715.7,1715.2,19.64885]
[1693403380752,5.82873,1715.7,1715.2,22.70953678]
[1693403381248,5.8282,1715.8,1715.3,8.98548065]
[1693403381410,5.8282,1715.8,1715.4,17.48786]
[1693403381411,5.8284,1715.8,1715.4,17.48786]
[1693403383452,11.6568,1715.8,1715.4,17.48786]
[1693403383623,11.6568,1715.8,1715.4,19.52399407]
[1693403386658,5.82772,1716.0,1715.4,22.39747472]
[1693403386814,11.65543,1716.0,1715.4,24.38247472]
[1693403387012,5.82771,1716.0,1715.4,24.38247472]
[1693403387210,5.82725,1716.1,1715.5,2.87348065]
[1693403387413,5.82692,1716.2,1715.7,1.985]
[1693403387640,0.17207562,1716.5,1715.8,22.82251065]
[1693403387641,11.6527,1716.4,1715.8,22.82251065]
[1693403387842,5.82588,1716.5,1715.9,9.73685921]
[1693403387843,11.65188,1716.5,1715.9,9.73685921]
[1693403388167,11.65114,1716.6,1716.0,17.48169]
[1693403388319,5.82548,1716.6,1716.0,17.48169]
[1693403388518,11.6511,1716.6,1716.1,3.0]
[1693403388718,11.6511,1716.6,1716.2,11.6533]
[1693403389030,0.91148523,1717.0,1716.4,1.985]
[1693403389345,11.64855,1717.0,1716.5,17.47661]
[1693403394015,17.47283,1717.0,1716.5,11.65106]
[1693403394220,22.33131065,1717.0,1716.5,5.82553]
[1693403394434,11.64966,1716.8,1716.5,11.65133]
[1693403395656,5.82481,1716.8,1716.5,11.65133]
[1693403396361,5.82481,1716.8,1716.4,5.82595]
[1693403396362,11.6496,1716.8,1716.4,5.82595]
[1693403396643,17.47445,1716.8,1716.4,11.65188]
[1693403396842,19.221895,1716.8,1716.4,11.65188]
[1693403398329,19.221895,1716.8,1716.4,5.82593]
[1693403399027,19.221895,1716.8,1716.3,5.8263]
[1693403399436,19.221895,1716.8,1716.2,11.65336]
[1693403400057,19.4622,1716.6,1716.1,4.9669]
[1693403400286,11.65242,1716.4,1716.1,5.82715]
[1693403400665,5.82621,1716.4,1716.1,5.82715]
[1693403400852,5.82621,1716.4,1716.1,11.65431]
[1693403401053,7.77218,1716.5,1716.1,17.48147]
[1693403401261,1.94622,1716.5,1716.1,17.48147]
[1693403401466,11.65122,1716.6,1716.1,17.48147]
[1693403402381,17.4769,1716.6,1716.1,11.65431]
[1693403402756,22.33538065,1716.6,1716.0,5.82743]
[1693403402992,22.33538065,1716.6,1716.0,5.82735]
[1693403402993,4.85848065,1716.5,1716.0,5.82735]
[1693403403197,17.4788,1716.4,1716.0,5.82735]
[1693403403357,1.74788,1716.3,1715.9,5.82776]
[1693403403553,11.65378,1716.2,1715.9,5.82776]
[1693403403782,11.65378,1716.2,1715.8,14.65593]
[1693403404258,11.65378,1716.2,1715.8,8.82795]
[1693403405098,17.48067,1716.2,1715.7,13.727]
[1693403405257,17.48067,1716.2,1715.7,2.0702]
[1693403405460,11.65533,1716.0,1715.6,14.65741]
[1693403405701,11.65533,1716.0,1715.6,8.82867]
[1693403405857,5.82766,1716.0,1715.6,14.65753]
[1693403406063,5.82766,1716.0,1715.6,17.48639]
[1693403406470,11.65533,1716.0,1715.6,17.48639]
[1693403406696,14.1611407,1716.0,1715.6,11.65753]
[1693403407404,19.9888107,1716.0,1715.6,11.65753]
[1693403407974,14.1611407,1716.0,1715.6,11.65753]
[1693403408397,14.1611407,1716.0,1715.6,17.48639]
[1693403408398,5.82766,1716.0,1715.6,17.48639]
[1693403408608,11.65459,1716.1,1715.6,17.48639]
[1693403408944,5.82752,1716.0,1715.6,17.48639]
[1693403409472,5.82752,1716.0,1715.6,11.65753]
[1693403409677,11.65504,1716.0,1715.6,11.65753]
[1693403410006,6.993504,1715.9,1715.6,11.65753]
[1693403410570,11.65526,1716.0,1715.6,11.65753]
[1693403410798,11.65526,1716.0,1715.6,17.48639]
[1693403411407,5.82722,1716.1,1715.6,17.48639]
[1693403411789,5.82655,1716.3,1715.7,10.97048065]
[1693403411987,11.65326,1716.3,1715.8,17.48373]
[1693403412295,11.65326,1716.3,1715.8,20.97022818]
[1693403413019,5.82655,1716.3,1716.0,11.65486]
[1693403413225,11.65318,1716.3,1716.0,5.82743]
[1693403415277,17.47981,1716.3,1715.9,5.82766]
[1693403415429,1.747981,1716.2,1715.8,11.65616]
[1693403415733,5.82723,1716.1,1715.8,11.65616]
[1693403415926,5.82723,1716.1,1715.8,5.82807]
[1693403417329,11.65446,1716.1,1715.6,8.82879]
[1693403417631,11.65446,1716.1,1715.6,14.6575]
[1693403417632,17.48169,1716.1,1715.6,14.6575]
[1693403417839,1.748169,1716.0,1715.6,14.6575]
[1693403418152,5.82788,1715.9,1715.6,14.6575]
[1693403418499,20.35708065,1715.9,1715.5,5.82919]
[1693403418838,1.985,1715.8,1715.4,11.65884]
[1693403419061,5.82859,1715.7,1715.4,11.65884]
[1693403419431,5.82803,1715.9,1715.4,19.428163]
[1693403419638,13.403529,1716.0,1715.4,19.428163]
[1693403419942,1.748169,1716.0,1715.4,19.428163]
[1693403420144,2.87348065,1715.9,1715.4,5.82941]
[1693403420342,17.48535,1715.8,1715.3,5.8296]
[1693403420511,20.35883065,1715.8,1715.2,5.93002]
[1693403420945,20.35883065,1715.8,1715.3,5.82986]
[1693403422652,19.47209,1715.6,1715.2,0.1]
[1693403422853,11.65908,1715.4,1715.2,0.1]
[1693403423253,5.82933,1715.5,1715.2,11.76037]
[1693403423453,5.82896,1715.6,1715.2,17.59059]
[1693403423662,5.82931,1715.5,1715.2,17.59059]
[1693403423829,5.82931,1715.5,1715.2,19.349649]
[1693403424162,5.82931,1715.5,1715.2,13.519429]
[1693403424335,5.77931,1715.5,1715.2,13.519429]
[1693403424950,5.77931,1715.5,1715.2,11.76037]
[1693403425260,11.60862,1715.5,1715.2,0.1]
[1693403425470,14.48210065,1715.5,1715.2,0.1]
[1693403425619,20.31141065,1715.5,1715.2,0.1]
[1693403425821,2.03114107,1715.4,1715.2,0.1]
[1693403426115,17.48964,1715.3,1715.2,0.1]
[1693403426437,11.65976,1715.3,1715.2,0.1]
[1693403427362,5.8293,1715.5,1715.2,0.1]
[1693403427544,5.82906,1715.6,1715.2,12.353392]
[1693403427755,11.65812,1715.6,1715.2,12.353392]
[1693403428862,5.82906,1715.6,1715.2,18.183612]
[1693403429832,11.65812,1715.6,1715.2,18.183612]
[1693403431751,11.65812,1715.6,1715.3,0.19592174]
[1693403431955,11.65812,1715.6,1715.3,6.02566174]
[1693403432276,11.65812,1715.6,1715.4,0.00332891]
[1693403433340,11.65812,1715.6,1715.3,11.85543174]
[1693403434214,11.65812,1715.6,1715.4,0.00332891]
[1693403434922,19.235853,1715.6,1715.4,0.00332891]
[1693403435275,19.235853,1715.6,1715.3,0.19592174]
[1693403435723,19.235853,1715.6,1715.2,0.1]
[1693403436215,5.82863,1715.7,1715.3,0.00333706]
[1693403436424,7.77503,1715.9,1715.4,17.48785]
[1693403436590,5.82758,1716.0,1715.4,19.47285]
[1693403436774,7.70497,1716.1,1715.6,17.48607]
[1693403436775,11.65461,1716.1,1715.6,17.48607]
[1693403436975,8.82634,1716.4,1715.6,17.48607]
[1693403436976,5.82664,1716.3,1715.7,2.87348065]
[1693403437224,13.37302,1716.4,1715.7,9.57278512]
[1693403437225,5.82619,1716.4,1715.7,9.57278512]
[1693403437428,5.82555,1716.6,1715.9,25.58043]
[1693403437585,5.82555,1716.6,1716.0,4.85848065]
[1693403437586,11.65123,1716.6,1716.0,4.85848065]
[1693403437924,11.65123,1716.6,1716.1,17.96677807]
[1693403438577,11.65063,1716.7,1716.1,17.96677807]
[1693403438781,11.65063,1716.7,1716.1,19.95177807]
[1693403439190,5.82548,1716.6,1716.1,17.96677807]
[1693403439705,17.47642,1716.6,1716.1,12.13962807]
[1693403440324,17.47642,1716.6,1716.2,0.00356046]
[1693403442391,17.47642,1716.6,1716.2,1.21787931]
[1693403442581,17.47642,1716.6,1716.2,7.04466931]
[1693403442788,6.43160682,1717.1,1716.4,8.097]
[1693403443021,0.60765682,1717.2,1716.6,17.47629]
[1693403443205,12.25526682,1717.1,1716.6,11.65086]
[1693403443504,17.47145,1717.1,1716.6,17.47632]
[1693403443697,17.47145,1717.1,1716.6,11.65086]
[1693403444202,17.47145,1717.1,1716.7,0.00351608]
[1693403444424,17.47145,1717.1,1716.7,11.65348608]
[1693403444582,19.47786068,1717.1,1716.7,11.65348608]
[1693403444984,1.985,1716.9,1716.7,0.00351608]
[1693403445187,22.33285065,1716.8,1716.7,0.00351608]
[1693403445492,24.56613572,1716.8,1716.7,0.00351608]
[1693403445802,22.58113572,1716.8,1716.7,0.00351608]
[1693403446325,11.64958,1716.8,1716.5,5.82566]
[1693403446731,11.64958,1716.8,1716.6,0.20259863]
[1693403447725,11.64958,1716.8,1716.6,6.02805863]
[1693403448131,11.64958,1716.8,1716.6,0.20259863]
[1693403448339,11.64958,1716.8,1716.7,0.00351608]
[1693403448340,20.34785065,1716.8,1716.7,0.00351608]
[1693403448632,24.95010372,1716.8,1716.7,0.00351608]
[1693403449220,24.95010372,1716.8,1716.7,0.20272676]
[1693403449517,24.95010372,1716.8,1716.2,5.82671]
[1693403450258,24.95010372,1716.8,1716.3,0.00355159]
[1693403450414,2.87348065,1716.7,1716.3,0.00355159]
[1693403450742,17.47659,1716.6,1716.3,0.00355159]
[1693403451043,20.29263507,1716.6,1716.3,0.00355159]
[1693403451239,20.29263507,1716.6,1716.0,13.54984]
[1693403451628,20.29263507,1716.6,1716.0,19.37734]
[1693403452324,20.29263507,1716.6,1716.1,5.83053935]
[1693403452697,20.29263507,1716.6,1716.1,0.00356935]
[1693403452899,1.97926351,1716.5,1716.1,0.00356935]
[1693403453104,11.65242,1716.4,1716.1,5.83071935]
[1693403453804,11.65242,1716.4,1716.1,11.65787935]
[1693403454418,9.30265307,1716.8,1716.1,17.48503935]
[1693403454419,5.82555,1716.6,1716.1,17.48503935]
[1693403454648,11.65124,1716.6,1716.1,17.48503935]
[1693403454848,11.65124,1716.6,1716.2,1.74850394]
[1693403455024,11.65124,1716.6,1716.3,11.65285]
[1693403455209,5.82555,1716.6,1716.3,11.65640159]
[1693403455413,11.65124,1716.6,1716.3,11.65640159]
[1693403456043,5.82517,1716.7,1716.3,11.65640159]
[1693403456240,11.64999,1716.8,1716.4,1.16564016]
[1693403456547,11.64999,1716.8,1716.5,11.65148]
[1693403457161,5.82496,1716.8,1716.6,0.00352495]
[1693403457392,0.60765682,1717.1,1716.7,8.98548065]
[1693403457661,0.101,1717.4,1717.2,23.29372]
[1693403457833,0.101,1717.4,1717.3,20.46927]
[1693403458226,0.101,1717.4,1717.3,17.46927]
[1693403459571,0.101,1717.4,1717.3,5.82309]
[1693403459771,0.101,1717.4,1717.3,11.64618]
[1693403459979,0.101,1717.4,1717.3,5.82309]
[1693403460469,0.101,1717.4,1717.3,11.64618]
[1693403461173,0.101,1717.4,1717.3,17.46927]
[1693403461477,0.101,1717.4,1717.3,19.4081643]
[1693403461636,0.101,1717.4,1717.3,19.41292572]
[1693403463829,0.101,1717.4,1717.3,28.39840637]
[1693403464180,0.101,1717.4,1717.3,30.86340637]
[1693403465962,0.101,1717.4,1717.3,21.39792572]
[1693403466177,0.101,1717.4,1717.3,19.41292572]
[1693403468890,0.101,1717.4,1717.3,30.38340637]
[1693403469034,0.101,1717.4,1717.3,21.39792572]
[1693403470076,0.101,1717.4,1717.3,30.86340637]
[1693403470851,0.101,1717.4,1717.3,21.87792572]
[1693403471051,0.101,1717.4,1717.3,17.66599872]
[1693403472024,0.101,1717.4,1717.3,31.63647937]
[1693403472174,4.895,1718.1,1717.3,35.69883054]
[1693403472375,4.895,1718.1,1717.5,6.112]
[1693403472613,4.895,1718.1,1717.6,28.91588065]
[1693403472876,4.895,1718.1,1717.8,17.46402]
[1693403473076,2.2742,1718.1,1717.8,17.46402]
[1693403473316,2.2742,1718.1,1717.9,0.00468828]
[1693403473484,2.2742,1718.1,1718.0,5.82072]
[1693403473907,0.101,1718.2,1718.0,5.82072]
[1693403474288,0.101,1718.2,1718.0,11.64144]
[1693403476177,0.101,1718.2,1718.0,17.46216]
[1693403476582,0.101,1718.2,1718.1,6.01048973]
[1693403477292,0.101,1718.2,1718.1,19.42110661]
[1693403479991,0.101,1718.2,1718.1,17.65591364]
[1693403480194,0.101,1718.2,1718.1,0.19477364]
[1693403480398,0.101,1718.2,1718.1,6.01515364]
[1693403486702,8.79452065,1718.2,1718.1,0.19477364]
[1693403486909,23.57119494,1718.2,1717.5,11.64455]
[1693403487125,23.57119494,1718.2,1718.1,0.1901257]
[1693403487427,23.57119494,1718.2,1717.5,11.64467]
[1693403487635,23.57119494,1718.2,1717.4,5.82264]
[1693403487636,11.64218,1717.9,1717.4,5.82256]
[1693403487787,11.64363,1717.7,1717.2,5.82326]
[1693403487992,11.64363,1717.7,1717.3,5.82302]
[1693403488240,17.46553,1717.7,1717.3,5.82303]
[1693403488598,11.64363,1717.7,1717.3,11.64612]
[1693403489000,8.39103,1717.7,1717.3,17.46921]
[1693403489411,2.5693,1717.7,1717.3,19.798447]
[1693403492653,8.39106,1717.7,1717.3,19.798447]
[1693403492957,14.21282,1717.7,1717.3,17.46921]
[1693403494128,8.39106,1717.7,1717.3,17.46921]
[1693403494364,0.101,1718.2,1717.6,10.97048065]
[1693403494548,0.101,1718.5,1718.2,6.112]
[1693403494778,0.101,1718.5,1718.3,33.91063182]
[1693403494958,0.101,1718.5,1718.3,36.32828065]
[1693403495158,0.101,1718.5,1718.3,41.05184281]
[1693403495362,0.101,1718.5,1718.4,10.27835117]
[1693403495701,0.101,1718.5,1718.4,30.20143117]
[1693403495844,0.101,1718.5,1718.4,24.08943117]
[1693403496049,0.101,1718.5,1718.4,19.44308]
[1693403497353,0.101,1718.5,1718.4,20.0660459]
[1693403498595,0.101,1718.5,1718.4,11.63872]
[1693403500254,0.101,1718.5,1718.4,17.45808]
[1693403501283,0.101,1718.5,1718.4,11.63872]
[1693403502159,0.101,1718.5,1718.4,17.45808]
[1693403503063,0.101,1718.5,1718.4,20.45808]
[1693403503268,0.101,1718.5,1718.4,23.9734119]
[1693403503880,0.101,1718.5,1718.4,32.95889255]
[1693403506116,0.101,1718.5,1718.4,33.43889255]
[1693403508920,0.101,1718.6,1718.4,33.43889255]
[1693403509211,0.101,1718.6,1718.5,32.74554065]
[1693403509456,0.101,1718.6,1718.5,34.26996781]
[1693403509843,0.101,1718.6,1718.5,28.15796781]
[1693403510660,0.101,1718.6,1718.5,40.08898781]
[1693403517422,0.101,1718.6,1718.5,39.24198781]
[1693403520675,0.101,1718.7,1718.5,50.03700781]
[1693403520874,0.101,1719.0,1718.8,6.112]
[1693403521075,0.101,1719.0,1718.9,20.45301]
[1693403522563,0.101,1719.0,1718.9,29.43849065]
[1693403524863,0.101,1719.0,1718.9,29.91849065]
[1693403525065,0.101,1719.0,1718.9,29.43849065]
[1693403525279,0.101,1719.0,1718.9,32.95382255]
[1693403527074,0.101,1719.0,1718.9,33.43382255]
[1693403527915,0.101,1719.0,1718.9,23.9683419]
[1693403528083,0.101,1719.0,1718.9,20.45301]
[1693403528706,0.101,1719.0,1718.9,31.41449065]
[1693403528888,0.101,1719.0,1718.9,31.89449065]
[1693403532550,0.101,1719.0,1718.9,29.91849065]
[1693403533054,0.101,1719.0,1718.9,31.89449065]
[1693403533353,2.2524,1719.2,1718.9,42.36517572]
[1693403533642,2.2524,1719.2,1719.1,6.112]
[1693403533851,2.2524,1719.2,1719.1,35.25344065]
[1693403534138,0.101,1719.2,1719.1,35.25344065]
[1693403534538,0.101,1719.2,1719.1,37.70944065]
[1693403534737,0.101,1719.2,1719.1,39.84310564]
[1693403535118,0.101,1719.2,1719.1,37.86710564]
[1693403535948,0.101,1719.2,1719.1,31.75510564]
[1693403536107,0.101,1719.2,1719.1,37.86710564]
[1693403537851,0.101,1719.2,1719.1,40.86710564]
[1693403538152,0.101,1719.2,1719.1,42.84310564]
[1693403538461,2.2389,1719.5,1719.1,42.84310564]
[1693403538663,2.2389,1719.5,1719.2,34.30074121]
[1693403538807,2.2389,1719.5,1719.2,36.27674121]
[1693403539016,2.2389,1719.5,1719.4,6.112]
[1693403539240,0.101,1719.5,1719.4,35.24940065]
[1693403539892,0.101,1719.5,1719.4,26.26392]
[1693403540089,0.101,1719.5,1719.4,17.44794]
[1693403540738,0.101,1719.5,1719.4,22.06621465]